bitfinex/quotes_SOLUSD_20241210
["timestamp","ask_amount","ask_price","bid_price","bid_amount"]
[1733832380002,1.5973,216.37,216.29,14.12521658]
[1733832380215,6.6449,216.42,216.29,14.12521658]
[1733832380216,8.2422,216.42,216.29,14.12521658]
[1733832380538,8.2422,216.42,216.3,14.12521658]
[1733832380698,8.2422,216.42,216.31,14.12521658]
[1733832380996,1.5973,216.42,216.33,14.12521658]
[1733832381397,1.5973,216.42,216.31,14.12521658]
[1733832381707,1.5973,216.42,216.25,0.81874907]
[1733832381708,1.5973,216.42,216.27,14.12521658]
[1733832382419,20.0,216.41,216.3,14.12521658]
[1733832382826,20.0,216.41,216.29,14.12521658]
[1733832384319,20.0,216.41,216.3,14.12521658]
[1733832384631,20.0,216.41,216.31,14.12521658]
[1733832385625,20.0,216.41,216.29,14.12521658]
[1733832386414,1.5973,216.42,216.27,14.12521658]
[1733832386415,20.0,216.37,216.27,14.12521658]
[1733832386745,20.0,216.37,216.26,14.12521658]
[1733832386940,20.0,216.37,216.27,14.12521658]
[1733832388311,20.0,216.37,216.28,14.12521658]
[1733832388524,20.0,216.37,216.25,0.12549]
[1733832388525,20.0,216.37,216.29,14.12521658]
[1733832388925,0.12549,216.4,216.29,14.12521658]
[1733832390050,0.12549,216.4,216.28,14.12521658]
[1733832390549,20.0,216.37,216.24,1.5213]
[1733832390747,20.0,216.33,216.24,1.5213]
[1733832391545,20.0,216.33,216.23,14.12521658]
[1733832393035,0.12549,216.32,216.19,15.67391658]
[1733832394830,0.12549,216.32,216.2,14.12521658]
[1733832395911,1.5093,216.33,216.24,14.12521658]
[1733832396118,1.5093,216.33,216.25,14.12521658]
[1733832396417,20.0,216.34,216.26,14.12521658]
[1733832397618,20.0,216.34,216.23,0.69349449]
[1733832397619,20.0,216.34,216.25,14.12521658]
[1733832398844,20.0,216.34,216.26,14.12521658]
[1733832399835,1.5093,216.38,216.29,14.12521658]
[1733832400047,1.5093,216.38,216.3,14.12521658]
[1733832400413,1.5093,216.38,216.28,0.12549]
[1733832400414,1.5093,216.38,216.31,14.12521658]
[1733832400724,1.5093,216.38,216.29,14.12521658]
[1733832401136,1.5093,216.38,216.27,14.12521658]
[1733832401519,1.5093,216.38,216.28,14.12521658]
[1733832402549,1.5093,216.38,216.3,14.12521658]
[1733832402746,1.5093,216.38,216.29,14.12521658]
[1733832408246,20.0,216.4,216.32,14.12521658]
[1733832408454,7.8154,216.43,216.34,14.12521658]
[1733832409632,20.0,216.4,216.35,14.12521658]
[1733832409842,1.5014,216.43,216.35,14.12521658]
[1733832411270,1.5014,216.43,216.28,325.1245]
[1733832411271,27.5232,216.48,216.38,14.12521658]
[1733832412360,27.5232,216.48,216.36,14.12521658]
[1733832412544,0.12549,216.45,216.28,1.5659]
[1733832412745,0.12549,216.47,216.28,1.5659]
[1733832412746,0.12549,216.47,216.3,14.12521658]
[1733832412962,0.12549,216.47,216.31,0.12549]
[1733832413174,20.0,216.46,216.33,14.12521658]
[1733832413362,20.12549,216.45,216.33,14.12521658]
[1733832417689,20.0,216.45,216.35,14.12521658]
[1733832417984,20.0,216.45,216.34,14.25070658]
[1733832418155,7.5232,216.48,216.34,14.25070658]
[1733832419185,0.12549,216.47,216.34,14.25070658]
[1733832419374,20.0,216.45,216.34,14.25070658]
[1733832420970,20.0,216.45,216.36,0.12549]
[1733832421186,20.0,216.45,216.34,14.12521658]
[1733832422051,0.12549,216.44,216.32,14.12521658]
[1733832422284,0.12549,216.44,216.28,15.69111658]
[1733832422525,1.6118,216.43,216.27,14.12521658]
[1733832422683,0.12549,216.42,216.28,0.12549]
[1733832422884,0.12549,216.42,216.27,14.12521658]
[1733832423383,20.0,216.38,216.26,14.12521658]
[1733832423708,20.0,216.38,216.27,0.12549]
[1733832424792,20.0,216.38,216.27,14.12521658]
[1733832426306,20.0,216.38,216.25,14.12521658]
[1733832426728,1.6118,216.36,216.24,14.12521658]
[1733832427006,1.6118,216.36,216.22,15.64781658]
[1733832427197,1.6118,216.36,216.23,0.12549]
[1733832427603,1.6118,216.36,216.23,14.25070658]
[1733832429207,1.6118,216.36,216.23,0.12549]
[1733832429412,0.12549,216.35,216.21,14.12521658]
[1733832429912,1.6118,216.36,216.25,14.12521658]
[1733832431110,0.12549,216.35,216.23,14.12521658]
[1733832431311,0.12549,216.35,216.21,14.12521658]
[1733832431594,1.6118,216.3,216.15,0.69358271]
[1733832431904,0.12549,216.29,216.12,2.2163263]
[1733832432211,0.12549,216.29,216.14,14.12521658]
[1733832432412,0.12549,216.29,216.15,0.12549]
[1733832432819,1.6118,216.3,216.17,14.12521658]
[1733832432997,1.6118,216.3,216.17,0.12549]
[1733832433311,1.6118,216.3,216.17,14.25070658]
[1733832433786,1.6118,216.3,216.18,14.12521658]
[1733832433990,1.6118,216.3,216.21,14.12521658]
[1733832434491,1.6118,216.3,216.22,14.12521658]
[1733832435130,6.4195,216.34,216.26,14.12521658]
[1733832436107,1.5011,216.35,216.23,0.69355288]
[1733832436108,1.5011,216.35,216.28,14.12521658]
[1733832436613,1.5011,216.35,216.26,14.12521658]
[1733832436818,1.5011,216.35,216.23,14.12521658]
[1733832437024,1.5011,216.35,216.2,312.0]
[1733832437192,1.5011,216.35,216.2,14.12521658]
[1733832437398,0.12549,216.34,216.2,14.12521658]
[1733832437818,0.12549,216.34,216.21,14.12521658]
[1733832437993,0.12549,216.34,216.18,0.81910366]
[1733832437994,0.12549,216.34,216.19,14.12521658]
[1733832438200,20.12549,216.34,216.18,14.12521658]
[1733832438512,6.2139,216.33,216.18,0.12549]
[1733832438698,20.0,216.3,216.18,0.12549]
[1733832439504,20.0,216.3,216.17,0.12549]
[1733832439798,0.12549,216.27,216.14,14.12521658]
[1733832440101,1.5011,216.28,216.15,14.25070658]
[1733832440508,1.5011,216.28,216.14,14.12521658]
[1733832440705,1.5011,216.28,216.12,2.19602934]
[1733832440706,0.12549,216.27,216.13,14.12521658]
[1733832440902,20.0,216.23,216.13,14.12521658]
[1733832441138,20.0,216.23,216.1,14.12521658]
[1733832441297,20.0,216.23,216.09,14.12521658]
[1733832441500,20.0,216.23,216.07,14.12521658]
[1733832441501,0.12549,216.22,216.07,14.12521658]
[1733832441897,0.12549,216.22,216.06,14.12521658]
[1733832442208,0.12549,216.2,216.04,14.12521658]
[1733832442598,0.12549,216.2,216.05,0.12549]
[1733832443118,20.0,216.16,216.05,14.25070658]
[1733832443294,20.0,216.16,216.06,14.12521658]
[1733832443497,20.0,216.16,216.05,14.25070658]
[1733832443707,20.0,216.16,216.05,14.12521658]
[1733832443912,20.0,216.16,216.08,14.12521658]
[1733832444417,6.2139,216.19,216.1,14.12521658]
[1733832444840,6.2139,216.19,216.11,14.12521658]
[1733832445136,1.5011,216.21,216.12,14.12521658]
[1733832445810,21.5011,216.21,216.12,14.12521658]
[1733832448547,6.2139,216.24,216.15,14.12521658]
[1733832448844,6.2139,216.24,216.16,14.12521658]
[1733832449019,1.5078,216.27,216.19,14.12521658]
[1733832449349,1.5078,216.27,216.18,14.12521658]
[1733832450437,20.0,216.26,216.18,14.12521658]
[1733832450951,20.0,216.26,216.13,14.12521658]
[1733832451815,20.0,216.24,216.13,14.12521658]
[1733832452144,20.0,216.26,216.13,14.12521658]
[1733832453440,20.0,216.22,216.13,14.12521658]
[1733832455632,20.0,216.22,216.14,14.12521658]
[1733832456034,20.0,216.26,216.17,14.12521658]
[1733832456539,20.0,216.26,216.15,0.69385238]
[1733832456540,20.0,216.26,216.12,0.25098]
[1733832456844,20.0,216.26,216.17,14.12521658]
[1733832457545,20.0,216.26,216.19,14.12521658]
[1733832459544,20.0,216.26,216.15,326.12521658]
[1733832459750,20.0,216.26,216.14,14.12521658]
[1733832459950,20.0,216.26,216.15,0.12549]
[1733832460241,20.0,216.26,216.16,14.12521658]
[1733832460441,20.0,216.26,216.17,14.12521658]
[1733832462878,20.0,216.26,216.15,14.12521658]
[1733832463076,20.0,216.26,216.14,14.12521658]
[1733832463378,20.0,216.26,216.12,14.12521658]
[1733832464149,20.0,216.26,216.13,0.12549]
[1733832464479,20.0,216.22,216.11,14.12521658]
[1733832464678,20.0,216.22,216.12,14.12521658]
[1733832465051,20.0,216.22,216.1,0.69391595]
[1733832465052,20.0,216.22,216.13,14.12521658]
[1733832465447,20.0,216.22,216.11,0.12549]
[1733832465653,20.0,216.22,216.13,14.12521658]
[1733832466674,20.0,216.26,216.16,14.25070658]
[1733832466981,1.5078,216.27,216.19,14.12521658]
[1733832467370,1.5078,216.27,216.18,14.12521658]
[1733832467975,1.5078,216.27,216.17,14.25070658]
[1733832468187,20.0,216.26,216.17,14.25070658]
[1733832468547,20.0,216.26,216.18,14.12521658]
[1733832469777,20.0,216.26,216.19,14.12521658]
[1733832470282,1.5078,216.27,216.2,14.12521658]
[1733832470654,1.5078,216.27,216.21,14.12521658]
[1733832470885,6.0671,216.29,216.21,14.12521658]
[1733832471895,6.0671,216.29,216.18,14.12521658]
[1733832472099,20.0,216.26,216.18,14.12521658]
[1733832472674,20.0,216.26,216.16,0.69362789]
[1733832472849,20.0,216.26,216.16,14.12521658]
[1733832473881,20.0,216.26,216.14,23.776884]
[1733832474085,20.0,216.26,216.16,14.25070658]
[1733832476672,20.0,216.26,216.15,14.12521658]
[1733832476861,1.78719,216.25,216.09,6.5826]
[1733832477064,1.78719,216.25,216.12,14.12521658]
[1733832477559,1.78719,216.25,216.09,7.27649948]
[1733832477560,1.78719,216.25,216.09,0.69389948]
[1733832477760,1.78719,216.25,216.1,14.12521658]
[1733832479555,21.78719,216.25,216.08,14.25070658]
[1733832479888,0.12549,216.2,216.06,14.12521658]
[1733832480069,1.6617,216.19,216.06,14.12521658]
[1733832480581,1.6617,216.19,216.06,0.12549]
[1733832480766,1.6617,216.19,216.06,14.25070658]
[1733832480963,1.6617,216.19,216.07,14.12521658]
[1733832481173,1.6617,216.19,216.12,14.12521658]
[1733832481372,1.6617,216.19,216.1,14.12521658]
[1733832481683,1.6617,216.19,216.07,0.12549]
[1733832481995,1.6617,216.19,216.09,14.12521658]
[1733832482298,1.6617,216.19,216.11,14.12521658]
[1733832483794,8.1276,216.24,216.15,14.12521658]
[1733832483998,8.1276,216.24,216.16,14.12521658]
[1733832486287,8.1276,216.24,216.15,14.12521658]
[1733832487596,8.1276,216.24,216.16,14.12521658]
[1733832489470,6.4659,216.28,216.19,0.12549]
[1733832489676,6.4659,216.28,216.21,14.12521658]
[1733832490199,6.4659,216.28,216.12,10.12549]
[1733832490200,6.4659,216.28,216.18,14.12521658]
[1733832491106,6.4659,216.28,216.19,14.12521658]
[1733832491288,6.4659,216.28,216.18,14.12521658]
[1733832491695,6.4659,216.28,216.19,14.12521658]
[1733832491897,1.6617,216.29,216.21,14.12521658]
[1733832492083,1.6617,216.29,216.22,14.12521658]
[1733832492281,1.6617,216.29,216.24,14.12521658]
[1733832492486,1.6196,216.34,216.27,14.12521658]
[1733832493209,1.6196,216.34,216.28,14.12521658]
[1733832493587,1.6196,216.34,216.26,0.12549]
[1733832493588,1.6196,216.34,216.24,14.12521658]
[1733832496599,1.6196,216.34,216.26,14.12521658]
[1733832496798,1.6196,216.34,216.27,14.12521658]
[1733832497706,1.6196,216.34,216.24,14.25070658]
[1733832497896,1.6196,216.34,216.25,14.12521658]
[1733832498403,1.6196,216.34,216.22,14.12521658]
[1733832499223,0.12549,216.33,216.2,14.12521658]
[1733832499780,0.12549,216.33,216.19,14.12521658]
[1733832499987,0.12549,216.33,216.21,14.12521658]
[1733832501801,0.12549,216.33,216.19,0.69370239]
[1733832501802,0.12549,216.33,216.19,0.12549]
[1733832502114,20.0,216.29,216.16,14.12521658]
[1733832502816,20.0,216.29,216.13,14.81897919]
[1733832502817,0.12549,216.26,216.13,14.81897919]
[1733832502986,0.12549,216.26,216.06,7.2481718]
[1733832502987,20.0,216.23,216.11,14.12521658]
[1733832503485,20.0,216.23,216.1,14.12521658]
[1733832503685,0.12549,216.22,216.09,14.12521658]
[1733832503919,0.12549,216.22,216.1,14.12521658]
[1733832504609,0.12549,216.22,216.11,14.12521658]
[1733832504797,20.0,216.23,216.14,14.12521658]
[1733832505108,20.0,216.23,216.07,11.5697]
[1733832505109,20.0,216.23,216.15,14.12521658]
[1733832505285,6.3277,216.26,216.16,14.12521658]
[1733832506124,6.3277,216.26,216.1,0.69377893]
[1733832506125,6.3277,216.26,216.15,14.12521658]
[1733832506326,6.3277,216.26,216.13,14.12521658]
[1733832506986,20.0,216.23,216.11,14.12521658]
[1733832507588,20.0,216.23,216.13,14.12521658]
[1733832508532,20.0,216.23,216.13,0.12549]
[1733832509389,20.0,216.23,216.12,14.12521658]
[1733832509607,20.0,216.23,216.1,14.12521658]
[1733832511617,20.0,216.23,216.12,14.12521658]
[1733832513203,20.0,216.23,216.14,14.12521658]
[1733832513399,6.3277,216.26,216.16,14.12521658]
[1733832514213,6.3277,216.26,216.1,23.776884]
[1733832514214,6.3277,216.26,216.13,14.12521658]
[1733832514729,20.0,216.23,216.13,14.12521658]
[1733832516135,20.0,216.23,216.14,14.12521658]
[1733832517040,20.0,216.22,216.14,14.12521658]
[1733832517408,20.0,216.23,216.14,14.12521658]
[1733832517728,20.0,216.23,216.15,14.12521658]
[1733832517924,20.0,216.23,216.14,14.12521658]
[1733832518722,20.0,216.23,216.16,14.12521658]
[1733832519420,20.0,216.23,216.15,14.12521658]
[1733832520528,20.0,216.23,216.16,14.12521658]
[1733832520925,6.3277,216.26,216.17,14.25070658]
[1733832521125,1.6196,216.27,216.21,14.12521658]
[1733832521335,6.2569,216.31,216.21,14.12521658]
[1733832521511,6.2569,216.31,216.22,14.12521658]
[1733832522328,6.2569,216.31,216.25,14.12521658]
[1733832522518,1.5994,216.32,216.25,14.12521658]
[1733832522711,20.382116,216.36,216.27,14.12521658]
[1733832522913,20.382116,216.36,216.29,14.12521658]
[1733832522914,6.2569,216.36,216.29,14.12521658]
[1733832523104,6.2569,216.36,216.3,14.12521658]
[1733832523303,6.2569,216.36,216.29,14.12521658]
[1733832524113,1.5994,216.37,216.3,14.12521658]
[1733832524312,1.5994,216.37,216.26,20.69338515]
[1733832524313,1.5994,216.37,216.31,14.12521658]
[1733832525527,6.02,216.41,216.33,14.12521658]
[1733832527310,1.6462,216.42,216.35,14.12521658]
[1733832529709,1.6462,216.42,216.36,14.12521658]
[1733832530929,20.0,216.43,216.36,14.12521658]
[1733832533219,6.159,216.46,216.37,14.12521658]
[1733832533919,20.0,216.43,216.32,14.12521658]
[1733832534127,0.12549,216.42,216.3,14.12521658]
[1733832534740,0.12549,216.42,216.29,14.12521658]
[1733832536049,0.12549,216.42,216.3,14.12521658]
[1733832537047,20.0,216.39,216.3,14.12521658]
[1733832537333,0.12549,216.42,216.3,14.12521658]
[1733832538837,0.25098,216.42,216.27,0.69332984]
[1733832539037,0.12549,216.4,216.26,14.12521658]
[1733832539240,6.159,216.39,216.25,14.12521658]
[1733832539557,20.0,216.36,216.25,14.12521658]
[1733832539761,20.0,216.36,216.23,14.12521658]
[1733832539962,0.12549,216.35,216.22,14.12521658]
[1733832541228,0.12549,216.35,216.18,8.62473824]
[1733832541229,1.5226,216.34,216.21,14.12521658]
[1733832541459,1.5226,216.34,216.2,14.12521658]
[1733832541958,1.5226,216.34,216.21,14.12521658]
[1733832542149,1.5226,216.34,216.22,14.12521658]
[1733832543445,1.5226,216.34,216.24,14.12521658]
[1733832543765,1.5226,216.34,216.23,14.12521658]
[1733832544264,1.5226,216.34,216.22,14.12521658]
[1733832545153,0.12549,216.33,216.2,14.12521658]
[1733832545354,20.0,216.29,216.19,14.12521658]
[1733832545568,20.0,216.29,216.17,14.12521658]
[1733832546093,20.0,216.29,216.18,14.12521658]
[1733832546430,20.0,216.29,216.17,14.12521658]
[1733832546634,20.0,216.29,216.18,14.12521658]
[1733832547263,0.12549,216.28,216.17,14.12521658]
[1733832547444,1.5654,216.27,216.15,14.12521658]
[1733832547854,0.12549,216.26,216.15,14.12521658]
[1733832548759,1.5654,216.27,216.16,14.12521658]
[1733832551370,1.5654,216.27,216.13,0.81924516]
[1733832551371,0.12549,216.26,216.13,14.12521658]
[1733832551659,20.0,216.22,216.1,14.12521658]
[1733832551869,20.0,216.22,216.11,14.12521658]
[1733832552457,20.0,216.22,216.12,14.12521658]
[1733832552766,6.6049,216.25,216.16,14.12521658]
[1733832553379,6.6049,216.25,216.13,0.69389013]
[1733832553380,6.6049,216.25,216.15,14.12521658]
[1733832554648,6.6049,216.25,216.14,14.12521658]
[1733832554863,20.0,216.22,216.13,14.12521658]
[1733832556174,20.0,216.22,216.14,14.12521658]
[1733832557485,20.0,216.22,216.13,14.12521658]
[1733832558375,20.0,216.22,216.11,0.69387891]
[1733832558376,20.0,216.22,216.14,14.12521658]
[1733832558579,20.0,216.22,216.15,14.12521658]
[1733832558771,20.0,216.22,216.14,14.12521658]
[1733832558974,20.0,216.22,216.13,14.12521658]
[1733832559149,20.0,216.22,216.12,14.12521658]
[1733832559351,20.0,216.22,216.1,14.12521658]
[1733832559568,1.526,216.2,216.09,14.12521658]
[1733832559781,0.12549,216.19,216.06,14.12521658]
[1733832559990,0.12549,216.19,216.05,14.12521658]
[1733832560480,0.12549,216.15,216.03,14.12521658]
[1733832560778,0.12549,216.15,216.02,14.12521658]
[1733832561279,20.0,216.12,216.01,14.12521658]
[1733832562250,1.526,216.11,216.01,14.12521658]
[1733832562448,1.526,216.11,216.0,14.12521658]
[1733832563083,1.526,216.11,216.01,14.12521658]
[1733832564354,1.526,216.11,215.99,14.12521658]
[1733832566765,1.526,216.11,215.98,14.12521658]
[1733832567072,1.526,216.11,215.99,14.12521658]
[1733832567383,6.646,216.06,215.96,14.68218288]
[1733832567594,6.646,216.06,215.96,0.5569663]
[1733832567595,20.0,216.03,215.96,0.5569663]
[1733832570392,1.6582,216.02,215.96,0.5569663]
[1733832571488,20.0,215.98,215.96,0.5569663]
[1733832572298,23.902374,216.01,215.96,0.5569663]
[1733832572496,0.25098,216.01,215.96,0.5569663]
[1733832572715,20.0,215.98,215.96,0.5569663]
[1733832573273,6.646,215.97,215.96,0.5569663]
[1733832573692,1.6582,216.02,215.96,0.5569663]
[1733832574784,0.12549,216.01,215.96,0.5569663]
[1733832575201,24.027864,216.01,215.96,0.5569663]
[1733832575499,20.0,215.98,215.96,0.5569663]
[1733832575880,20.0,216.01,215.96,0.5569663]
[1733832576384,1.6582,216.02,215.96,0.5569663]
[1733832576978,1.6582,216.08,215.96,14.68218288]
[1733832577201,1.6582,216.08,215.96,0.5569663]
[1733832578196,0.12549,216.07,215.96,0.5569663]
[1733832579386,20.12549,216.07,215.96,0.5569663]
[1733832580710,20.0,216.07,215.97,14.12521658]
[1733832581391,20.0,216.07,215.98,14.12521658]
[1733832581594,6.646,216.1,216.0,14.12521658]
[1733832581798,1.6582,216.13,216.01,14.12521658]
[1733832582414,1.6582,216.13,216.04,14.12521658]
[1733832582616,6.1208,216.15,216.05,14.12521658]
[1733832582788,6.1208,216.15,216.04,14.12521658]
[1733832583638,0.12549,216.17,216.05,14.12521658]
[1733832583810,20.12549,216.17,216.05,14.12521658]
[1733832584306,20.12549,216.17,216.04,14.12521658]
[1733832584710,20.12549,216.17,216.03,14.12521658]
[1733832585721,20.0,216.17,216.06,14.12521658]
[1733832586216,20.0,216.17,216.08,14.12521658]
[1733832586413,1.5901,216.18,216.08,14.12521658]
[1733832586800,1.5901,216.18,216.07,14.12521658]
[1733832587409,1.5901,216.18,216.08,14.12521658]
[1733832588515,20.0,216.17,216.08,14.12521658]
[1733832589423,20.0,216.17,216.05,14.12521658]
[1733832589727,0.12549,216.16,216.05,14.12521658]
[1733832589907,0.12549,216.16,216.04,14.12521658]
[1733832590095,0.12549,216.16,216.03,14.12521658]
[1733832591014,0.12549,216.16,216.04,14.12521658]
[1733832592095,0.12549,216.16,216.03,14.12521658]
[1733832592621,0.12549,216.16,216.01,14.12521658]
[1733832593603,0.12549,216.16,216.0,14.12521658]
[1733832593999,0.12549,216.16,215.96,8.1935663]
[1733832594000,1.5901,216.14,215.98,14.12521658]
[1733832594222,1.5901,216.14,215.96,8.1935663]
[1733832594223,25.4701,216.14,215.96,2.1519663]
[1733832594421,20.0,216.11,215.96,0.5569663]
[1733832594637,0.25098,216.1,215.96,0.5569663]
[1733832594824,0.25098,216.08,215.96,0.5569663]
[1733832595207,0.25098,216.06,215.96,0.5569663]
[1733832595404,0.12549,216.03,215.96,0.5569663]
[1733832595706,20.25098,216.03,215.96,0.5569663]
[1733832596629,0.12549,216.03,215.96,0.5569663]
[1733832602112,0.25098,216.03,215.96,0.5569663]
[1733832602314,20.25098,216.03,215.96,6.63e-05]
[1733832602833,0.12549,216.01,215.96,6.63e-05]
[1733832603016,20.12549,216.03,215.96,6.63e-05]
[1733832603209,0.12549,215.99,215.96,6.63e-05]
[1733832603414,20.0,216.0,215.96,6.63e-05]
[1733832603827,0.12549,215.99,215.96,6.63e-05]
[1733832604330,0.25098,216.01,215.96,6.63e-05]
[1733832606613,20.0,216.0,215.96,6.63e-05]
[1733832606815,0.25098,215.99,215.96,6.63e-05]
[1733832607016,20.0,215.97,215.96,6.63e-05]
[1733832607336,20.12549,215.97,215.96,6.63e-05]
[1733832607532,20.0,215.97,215.96,6.63e-05]
[1733832611156,7.7109,216.07,215.96,6.63e-05]
[1733832611445,0.12549,216.06,215.96,6.63e-05]
[1733832611644,8.75456328,216.07,215.96,6.63e-05]
[1733832611842,2.78223698,216.02,215.96,6.63e-05]
[1733832612041,8.75456328,216.07,215.96,6.63e-05]
[1733832612240,10.60208483,216.07,215.96,6.63e-05]
[1733832612552,9.55842155,216.07,215.96,6.63e-05]
[1733832612956,3.43762155,216.07,215.96,6.63e-05]
[1733832613429,1.5901,216.07,215.96,6.63e-05]
[1733832614529,22.83755923,216.05,215.96,6.63e-05]
[1733832618031,0.12549,216.04,215.96,6.63e-05]
[1733832620662,22.83755923,216.05,215.96,6.63e-05]
[1733832620970,23.776884,216.04,215.96,6.63e-05]
[1733832621222,20.0,216.01,215.96,6.63e-05]
[1733832622175,1.8825386,216.08,215.96,6.63e-05]
[1733832622369,20.0,216.09,215.96,6.63e-05]
[1733832622579,2.82171742,216.06,215.96,6.63e-05]
[1733832622962,11.08361025,216.12,215.96,6.63e-05]
[1733832623169,4.52981025,216.12,215.96,14.81969694]
[1733832623679,4.52981025,216.12,215.97,14.12521658]
[1733832623980,4.52981025,216.12,215.96,14.81969694]
[1733832624277,4.52981025,216.12,215.96,6.63e-05]
[1733832624278,6.24440334,216.11,215.96,6.63e-05]
[1733832624444,20.0,216.08,215.96,6.63e-05]
[1733832624845,20.0,216.04,215.96,6.63e-05]
[1733832626990,20.0,216.03,215.96,6.63e-05]
[1733832627176,20.0,216.04,215.96,6.63e-05]
[1733832627976,23.776884,216.03,215.96,6.63e-05]
[1733832628199,20.0,216.0,215.96,6.63e-05]
[1733832636493,1.88766641,216.04,215.96,6.63e-05]
[1733832636699,24.027864,216.07,215.96,6.63e-05]
[1733832636910,20.0,216.04,215.96,6.63e-05]
[1733832640489,25.63697125,216.07,215.97,14.15898142]
[1733832640490,1.86008725,216.07,215.97,14.15898142]
[1733832640694,5.99342334,216.11,215.98,20.28818142]
[1733832640893,0.12549,216.15,215.98,20.28818142]
[1733832641110,2.84592016,216.1,215.98,20.28818142]
[1733832641316,2.84592016,216.1,215.99,1.6122]
[1733832641509,2.84592016,216.1,215.99,15.77118142]
[1733832642391,2.84592016,216.1,215.99,1.6122]
[1733832643093,0.25098,216.09,215.99,1.6122]
[1733832645714,0.12549,216.09,215.99,1.6122]
[1733832645913,2.84592016,216.1,215.99,1.6122]
[1733832649313,0.12549,216.13,216.0,14.15898142]
[1733832649628,7.03708662,216.14,216.01,14.15898142]
[1733832650521,7.03708662,216.14,216.03,21.85438142]
[1733832650708,4.23674089,216.2,216.06,14.15898142]
[1733832650908,0.12549,216.21,216.06,14.15898142]
[1733832651114,8.55538662,216.22,216.05,14.15898142]
[1733832651810,10.38349933,216.22,216.05,14.15898142]
[1733832652014,2.83281518,216.17,216.05,14.15898142]
[1733832653018,2.83281518,216.17,216.04,0.69411153]
[1733832653213,2.83281518,216.17,216.03,7.6954]
[1733832653527,0.12549,216.16,216.03,7.6954]
[1733832653924,0.25098,216.16,216.03,7.6954]
[1733832654829,20.25098,216.16,216.03,7.6954]
[1733832655203,20.12549,216.16,216.03,7.6954]
[1733832655429,2.83281518,216.17,216.03,7.6954]
[1733832655430,22.83281518,216.17,216.04,14.15898142]
[1733832655632,2.83281518,216.17,216.05,14.15898142]
[1733832656734,2.83281518,216.17,216.04,14.28447142]
[1733832657032,1.85558981,216.17,216.04,14.28447142]
[1733832657232,1.85558981,216.17,216.03,21.85438142]
[1733832657414,1.85558981,216.17,216.03,7.6954]
[1733832657616,0.12549,216.16,216.03,7.6954]
[1733832658218,0.25098,216.18,216.03,7.6954]
[1733832660537,0.12549,216.16,216.03,7.6954]
[1733832661618,0.25098,216.16,216.03,7.6954]
[1733832662018,20.0,216.13,216.03,7.6954]
[1733832663029,20.0,216.09,216.03,7.6954]
[1733832663627,20.0,216.09,215.98,1.627]
[1733832664455,20.0,216.05,215.98,1.627]
[1733832665919,20.0,216.01,215.96,6.63e-05]
[1733832670260,20.0,215.97,215.96,6.63e-05]
[1733832672130,2.7206468,216.04,215.96,6.63e-05]
[1733832674753,23.902374,216.03,215.96,6.63e-05]
[1733832674952,20.0,216.0,215.96,6.63e-05]
[1733832675528,2.7206468,216.04,215.96,6.63e-05]
[1733832676127,20.0,216.0,215.96,6.63e-05]
[1733832677587,20.0,216.0,215.93,1.627]
[1733832677753,23.776884,215.99,215.93,1.627]
[1733832678084,20.0,215.96,215.93,1.627]
[1733832678548,20.0,215.96,215.92,6.6215]
[1733832678961,20.0,215.96,215.88,1.6343]
[1733832681664,20.0,215.92,215.8,8.0447]
[1733832683558,20.0,215.88,215.8,8.0447]
[1733832684259,0.12549,215.87,215.8,8.0447]
[1733832684870,0.12549,215.87,215.8,1.6343]
[1733832686099,0.25098,215.87,215.75,6.4104]
[1733832687494,0.12549,215.87,215.75,6.4104]
[1733832688305,1.6224,215.95,215.78,14.15898142]
[1733832688608,1.6224,215.95,215.79,15.75428142]
[1733832688766,1.6224,215.95,215.79,1.5953]
[1733832688967,1.89819017,215.95,215.79,15.75428142]
[1733832689166,0.12549,215.99,215.79,15.75428142]
[1733832689398,13.89,216.0,215.81,14.15898142]
[1733832689564,2.83951873,215.94,215.8,21.42443945]
[1733832690389,2.83951873,215.94,215.81,14.15898142]